fUSD/lending_fUSD_20240706
["ID","MTS","AMOUNT","RATE_DAILY","PERIOD"]
[331343294,1720259432685,-150.0,0.00012274,2]
[331343295,1720259432695,-154.83,0.00012285,2]
[331343296,1720259432708,-492.0294394,0.00012302,2]
[331343297,1720259432724,-157.19351946,0.00012314,2]
[331343298,1720259432734,-400.0,0.00012314,2]
[331343299,1720259432744,-168.05,0.00012314,2]
[331343300,1720259432754,-184.31,0.00012314,2]
[331343301,1720259432763,-499.99,0.00012314,2]
[331343302,1720259432772,-154.83,0.00012377,2]
[331343303,1720259432781,-1000.0,0.00012416,2]
[331343304,1720259432791,-525.05,0.00012419,2]
[331343305,1720259432800,-154.83,0.00012468,2]
[331343306,1720259432810,-150.0,0.00012469,2]
[331343307,1720259432819,-2546.04,0.00012536,2]
[331343308,1720259432829,-154.83,0.0001256,2]
[331343309,1720259432838,-1000.0,0.00012582,2]
[331343310,1720259432847,-165.51,0.00012587,2]
[331343311,1720259432859,-150.0,0.000126,2]
[331343312,1720259432869,-154.83,0.00012651,2]
[331343313,1720259432879,-154.83,0.00012743,2]
[331343314,1720259432888,-154.83,0.00012834,2]
[331343315,1720259432898,-1000.0,0.00012887,2]
[331343316,1720259432908,-4549.56887807,0.00012888,2]
[331343317,1720259432917,-154.83,0.00012925,2]
[331343318,1720259432927,-208.63065251,0.00013128,2]
[331343319,1720259432936,-155.66322858,0.00013128,2]
[331343320,1720259432945,-1358.01569675,0.00013128,2]
[331343321,1720259432954,-173.03,0.00013307,2]
[331343322,1720259432965,-558.6356,0.0001336,2]
[331343323,1720259432974,-6739.3533,0.00013372,2]
[331343324,1720259432983,-9236.68269313,0.00013373,2]
[331343325,1720259432999,-19719.4446,0.00013374,2]
[331343326,1720259433009,-1000.0,0.00013374,2]
[331343327,1720259433020,-500.0,0.000134,2]
[331343328,1720259433030,-1000.0,0.000134,2]
[331343329,1720259433042,-8185.6057,0.000134,2]
[331343330,1720259433054,-11907.0,0.00013446,2]
[331343331,1720259433064,-303.74358298,0.00013472,2]
[331343332,1720259433073,-267.0631,0.00013474,2]
[331343333,1720259433088,-100000.0,0.00013474,2]
[331343334,1720259433097,-2500.0,0.00013474,2]
[331343335,1720259433107,-173.76636118,0.00013482,2]
[331343336,1720259433116,-1520.91954404,0.00013482,2]
[331343337,1720259433126,-1520.919544,0.00013542,2]
[331343338,1720259433135,-311.52885108,0.00013574,2]
[331343339,1720259433144,-1542.39305225,0.00013574,2]
[331343340,1720259433153,-5094.01996252,0.00013574,2]
[331343341,1720259433168,-252.04749438,0.00013576,2]
[331343342,1720259433178,-109301.04953302,0.0001358,2]
[331343343,1720259433190,-1520.919544,0.00013601,2]
[331343344,1720259433201,-1520.919544,0.00013661,2]
[331343345,1720259433210,-2751.0,0.00013699,2]
[331343346,1720259433220,-2593.78,0.00013699,2]
[331343347,1720259433230,-2022.89,0.00013699,2]
[331343348,1720259433239,-200.0,0.00013699,2]
[331343349,1720259433248,-1520.919544,0.00013721,2]
[331343350,1720259433259,-815.45312623,0.00013736,2]
[331343351,1720259433268,-1520.919544,0.00013781,2]
[331343352,1720259433277,-1520.919544,0.0001384,2]
[331343353,1720259433287,-500.0,0.00013887,2]
[331343354,1720259433296,-500.0,0.00013888,2]
[331343355,1720259433305,-218.21455427,0.00013889,2]
[331343356,1720259433315,-220.0,0.0001389,3]
[331343358,1720259433324,-359.63347576,0.000139,2]
[331343360,1720259433334,-24065.6729,0.000139,2]
[331343362,1720259433343,-1000.0,0.000139,2]
[331343364,1720259433353,-163.15039213,0.000139,2]
[331343366,1720259433363,-7500.0,0.000139,2]
[331343368,1720259433372,-1520.919544,0.000139,2]
[331343369,1720259433381,-314.82174626,0.000139,2]
[331343370,1720259433392,-390.5463648,0.000139,2]
[331343371,1720259433401,-735.56299996,0.000139,2]
[331343372,1720259433411,-1000.0,0.00013968,2]
[331343373,1720259433420,-186.40907942,0.00013987,2]
[331343374,1720259433430,-235.60543261,0.00013989,2]
[331343375,1720259433440,-186.40907942,0.0001399,2]
[331343376,1720259433450,-186.40907942,0.0001399,2]
[331343377,1720259433460,-178.44393283,0.00013996,2]
[331343378,1720259433470,-94880.85048755,0.00013997,2]
[331343379,1720259433483,-7823.73689433,0.00013997,2]
[331343380,1720259433495,-328.8373251,0.00013997,2]
[331343381,1720259433507,-155464.88678005,0.00013997,2]
[331343382,1720259433517,-1657.18724224,0.00013999,2]
[331343383,1720259433526,-162.09000773,0.00013999,2]
[331343384,1720259433536,-150.0,0.00013999,2]
[331343385,1720259433546,-150.0,0.00013999,7]
[331343386,1720259433555,-150.0,0.00013999,7]
[331343387,1720259433565,-768.0,0.00014,2]
[331343388,1720259433574,-497537.85134353,0.00014,2]
[331343389,1720259433586,-223472.75928962,0.00014,2]
[331343390,1720259434148,-40922.19787803,0.00014,2]
[331343391,1720259434159,-10283.09270712,0.00014,2]
[331343392,1720259434172,-301.2900896,0.00014,2]
[331343393,1720259434184,-4228.0863352,0.00014,2]
[331343394,1720259434196,-1111.46103322,0.00014,2]
[331343395,1720259434208,-658.25,0.00014,2]
[331343396,1720259434220,-77173.16446411,0.00014,2]
[331343397,1720259434232,-32980.41639929,0.00014,2]
[331343398,1720259434244,-460.43123519,0.00014,2]
[331343399,1720259434256,-424.75737778,0.00014,2]
[331343400,1720259434268,-5745.36347996,0.00014,2]
[331343401,1720259434279,-22570.35896018,0.00014,2]
[331343409,1720259438520,-712.08271485,0.00011791,2]
[331343411,1720259438533,-670.17910443,0.00011791,2]
[331343413,1720259438544,-2874.05,0.00011791,2]
[331343419,1720259439864,-168.34355072,0.00011791,2]
[331343420,1720259439874,-155.0,0.00013128,2]
[331343421,1720259439884,-1542.39305225,0.00013574,2]
[331343422,1720259439894,-235.60543261,0.00013899,2]
[331343423,1720259439904,-1000.0,0.000139,2]
[331343424,1720259439914,-828.59362113,0.00013999,2]
[331343425,1720259439924,-83871.45770538,0.00014,2]
[331343426,1720259439936,-609.04084905,0.00014,2]
[331343427,1720259439947,-2084.0327375,0.00014,2]
[331343428,1720259439959,-2158.98320904,0.00014,2]
[331343429,1720259441109,-939.63137312,0.00014,2]
[331343431,1720259441120,-1355.99115261,0.00014,2]
[331343432,1720259441133,-416.1,0.00014,2]
[331343433,1720259441144,-3540.07767609,0.00014,2]
[331343469,1720259442800,-500.0,0.00013474,2]
[331343470,1720259442810,-334.30484756,0.00013999,2]
[331343471,1720259442822,-79.991963,0.00013999,2]
[331343472,1720259442832,-182.4835675,0.00014,2]
[331343473,1720259442843,-902.16144431,0.00014,2]
[331343474,1720259442855,-2141.25728077,0.00014,2]
[331343475,1720259442867,-2191.28868631,0.00014,2]
[331343476,1720259442878,-505.53116172,0.00014,2]
[331343477,1720259442890,-5185.24013832,0.00014,2]
[331343502,1720259444894,-8154.7196893,0.00014,2]
[331343504,1720259444906,-4065.83103481,0.00014,2]
[331343505,1720259444917,-1641.75281423,0.00014,2]
[331343507,1720259446334,-471633.04911295,0.00014,2]
[331343512,1720259447693,-207.14840528,0.00013999,2]
[331343513,1720259447705,-50855.27948121,0.00014,2]
[331343514,1720259447718,-11449.6,0.00014,2]
[331343518,1720259933302,506.99,0.00010948,2]
[331343519,1720260221819,20332.63818252,0.00010948,2]
[331343520,1720260233629,414.39123956,0.00010948,2]
[331343521,1720260248250,227.19964772,0.00011199,2]
[331343522,1720260263224,227.19964772,0.00011199,2]
[331343523,1720260272670,1460.90907627,0.00011199,2]
[331343524,1720260287830,204.75806513,0.00010948,2]
[331343525,1720260295262,234.52535203,0.00011199,2]
[331343526,1720260322401,156.58427056,0.00011199,2]
[331343527,1720260331890,18590.04737642,0.00011199,2]
[331343532,1720260361741,218.21455427,0.00011199,2]
[331343533,1720260367507,433.7048666,0.00011199,2]
[331343534,1720260374393,366.40512962,0.00011199,2]
[331343537,1720260500995,-1609.19616097,0.00011691,2]
[331343539,1720260501043,-5175.3051906,0.00011735,2]
[331343541,1720260501153,-843.8708094,0.00011735,2]
[331343542,1720260501200,-4285.06841998,0.00011791,2]
[331343646,1720260569076,4092.05383887,0.00011199,2]
[331343659,1720260632340,-227.19964772,0.00012314,2]
[331343660,1720260632351,-150.0,0.000126,2]
[331343661,1720260632361,-250.0,0.00012745,2]
[331343662,1720260632371,-1000.0,0.00012745,2]
[331343663,1720260632380,-391.12,0.00012746,2]
[331343664,1720260632390,-893.77973508,0.00012753,2]
[331343665,1720260632403,-11174.27026492,0.00012753,2]
[331343666,1720260632413,-1958.98,0.00012809,2]
[331343667,1720260632422,-214.52,0.00012865,2]
[331343668,1720260632432,-208.63065251,0.00013128,2]
[331343669,1720260632442,-218.30797814,0.00013128,2]
[331343670,1720260632452,-1866.7433,0.00013274,2]
[331343671,1720260632462,-320.74,0.00013274,2]
[331343672,1720260632472,-1000.0,0.00013373,2]
[331343673,1720260632482,-574.18743623,0.00013373,2]
[331343674,1720260632491,-39415.80200366,0.00013374,2]
[331343675,1720260632503,-1521.76221221,0.00013374,2]
[331343676,1720260632515,-12216.11369626,0.00013374,2]
[331343677,1720260632527,-3540.04047111,0.00013374,2]
[331343678,1720260632538,-432.92,0.00013374,2]
[331343679,1720260632549,-42873.36161676,0.00013374,2]
[331343680,1720260632559,-1000.0,0.00013374,2]
[331343681,1720260632569,-165.51,0.00013412,2]
[331343682,1720260632579,-3035.95,0.00013472,2]
[331343683,1720260632593,-499.99,0.00013472,2]
[331343684,1720260632602,-1000.0,0.00013475,2]
[331343685,1720260632611,-1000.0,0.00013686,2]
[331343686,1720260632621,-200.0,0.00013699,2]
[331343687,1720260632630,-1011.44,0.00013699,2]
[331343688,1720260632640,-2751.0,0.00013699,2]
[331343689,1720260632650,-150.0,0.0001373,2]
[331343690,1720260632658,-150.0,0.00013743,2]
[331343691,1720260632667,-150.0,0.00013746,2]
[331343692,1720260632676,-150.0,0.00013748,2]
[331343693,1720260632686,-150.0,0.00013752,2]
[331343694,1720260632696,-150.0,0.00013755,2]
[331343695,1720260632706,-150.0,0.00013762,2]
[331343696,1720260632716,-150.0,0.00013763,2]
[331343697,1720260632725,-150.0,0.00013764,2]
[331343698,1720260632735,-150.0,0.00013767,2]
[331343699,1720260632745,-150.0,0.00013782,2]
[331343700,1720260632755,-150.0,0.00013785,2]
[331343701,1720260632764,-150.0,0.00013791,2]
[331343702,1720260632774,-150.0,0.00013795,2]
[331343703,1720260632783,-2500.0,0.000138,2]
[331343704,1720260632793,-150.0,0.00013802,2]
[331343705,1720260632802,-150.0,0.00013802,2]
[331343706,1720260632812,-150.0,0.00013803,2]
[331343707,1720260632822,-150.0,0.00013805,2]
[331343708,1720260632831,-305.36751778,0.00013812,2]
[331343709,1720260632842,-150.0,0.00013817,2]
[331343710,1720260632852,-150.0,0.00013819,2]
[331343711,1720260632861,-150.0,0.00013823,2]
[331343712,1720260632871,-150.0,0.00013828,2]
[331343713,1720260632882,-150.0,0.00013838,2]
[331343714,1720260632893,-150.0,0.00013842,2]
[331343715,1720260632902,-150.0,0.00013843,2]
[331343716,1720260632914,-150.0,0.00013847,2]
[331343717,1720260632923,-150.0,0.00013856,2]
[331343718,1720260632934,-150.0,0.00013857,2]
[331343719,1720260632943,-150.0,0.00013865,2]
[331343720,1720260632952,-150.0,0.00013871,2]
[331343721,1720260632962,-150.0,0.00013871,2]
[331343722,1720260632973,-150.0,0.00013874,2]
[331343723,1720260632983,-150.0,0.00013875,2]
[331343724,1720260632992,-150.0,0.00013875,2]
[331343725,1720260633003,-150.0,0.00013882,2]
[331343726,1720260633018,-500.0,0.00013887,2]
[331343727,1720260633032,-200.0,0.00013887,2]
[331343728,1720260633042,-500.0,0.00013888,2]
[331343729,1720260633052,-500.0,0.00013888,2]
[331343730,1720260633062,-200.0,0.00013888,2]
[331343731,1720260633071,-220.36,0.0001389,2]
[331343732,1720260633081,-1000.0,0.000139,2]
[331343733,1720260633090,-56776.6188,0.000139,2]
[331343734,1720260633100,-455.4595,0.000139,2]
[331343735,1720260633112,-988.4685,0.000139,2]
[331343736,1720260633121,-179.81673788,0.000139,2]
[331343737,1720260633131,-469.81777462,0.000139,2]
[331343738,1720260633140,-7500.0,0.000139,2]
[331343739,1720260633150,-1259.28698505,0.000139,2]
[331343740,1720260633159,-495.25411173,0.000139,2]
[331343741,1720260633171,-150.0,0.00013901,2]
[331343742,1720260633180,-150.0,0.00013907,2]
[331343743,1720260633189,-354.82287898,0.00013922,2]
[331343744,1720260633199,-150.0,0.00013931,2]
[331343745,1720260633208,-150.0,0.00013939,2]
[331343746,1720260633218,-150.0,0.00013949,2]
[331343747,1720260633227,-150.0,0.00013965,2]
[331343748,1720260633237,-150.0,0.00013966,2]
[331343749,1720260633246,-150.0,0.00013967,2]
[331343750,1720260633257,-150.0,0.0001397,2]
[331343751,1720260633266,-150.0,0.00013971,2]
[331343752,1720260633275,-300.0,0.00013972,2]
[331343753,1720260633285,-150.0,0.00013981,2]
[331343754,1720260633295,-150.0,0.00013985,2]
[331343755,1720260633304,-237.84894071,0.0001399,2]
[331343756,1720260633314,-150.0,0.00013992,2]
[331343757,1720260633323,-150.0,0.00013993,2]
[331343758,1720260633332,-150.0,0.00013997,2]
[331343759,1720260633344,-150.0,0.00013998,2]
[331343760,1720260633353,-150.0,0.00013998,2]
[331343761,1720260633362,-207.14840528,0.00013999,2]
[331343762,1720260633372,-232.5925504,0.00013999,2]
[331343763,1720260633381,-200.0,0.00013999,2]
[331343764,1720260633391,-645.0,0.00014,2]
[331343765,1720260633400,-282334.75906099,0.00014,2]
[331343766,1720260633413,-19051.05697284,0.00014,2]
[331343767,1720260633424,-691656.87912307,0.00014,2]
[331343768,1720260633436,-10770.18275676,0.00014,2]
[331343787,1720260638138,-286.65,0.00013807,2]
[331343788,1720260638161,-194.99,0.00013807,2]
[331343789,1720260638173,-20724.65024069,0.00014,2]
[331343790,1720260638185,-28521.13989376,0.00014,2]
[331343851,1720260640456,-1568.29552831,0.000139,2]
[331343853,1720260640469,-722.19529931,0.000139,2]
[331343854,1720260640481,-1376.56067519,0.000139,2]
[331343855,1720260640493,-897.48370091,0.000139,2]
[331343856,1720260640503,-8966.55789179,0.00014,2]
[331343857,1720260640517,-1502.36999999,0.00014,2]
[331343858,1720260640528,-981.2478824,0.00014,2]
[331343859,1720260640540,-332.38623611,0.00014,2]
[331343860,1720260640552,-591.94422766,0.00014,2]
[331343861,1720260640564,-479.93722657,0.00014,2]
[331343862,1720260640578,-5604.22868825,0.00014,2]
[331343863,1720260640591,-20813.72392366,0.00014,2]
[331343873,1720260642912,-1142.99518417,0.000139,2]
[331343880,1720260645372,-74.62573661,0.000139,2]
[331343881,1720260645382,-578.0,0.00014,2]
[331343882,1720260645391,-854.66426339,0.00014,2]
[331343883,1720260645403,-728.22246321,0.00014,2]
[331343930,1720260646762,-7390.93027812,0.00014,2]
[331343932,1720260646774,-55870.72452053,0.00014,2]
[331343935,1720260816900,2829.21023985,0.00011199,2]
[331343936,1720260894812,2378.1233349,0.00011199,2]
[331343937,1720260904916,256.43192166,0.00011199,2]
[331343938,1720260935454,1231.18182401,0.00011199,2]
[331343939,1720260962698,155.1536041,0.00011199,2]
[331343940,1720260998333,155.5794981,0.00011199,2]
[331343941,1720260999902,2419.52917518,0.00011199,2]
[331343942,1720261002961,163.23534465,0.00011199,2]
[331343943,1720261003342,300.5448887,0.00011199,2]
[331343944,1720261021677,411.72766835,0.00011199,2]
[331343945,1720261024315,348.53483336,0.00011199,2]
[331343946,1720261026840,219.33754829,0.00011199,2]
[331343947,1720261035101,221.76127018,0.00011199,2]
[331343948,1720261037785,411.72766835,0.00011199,2]
[331343949,1720261038692,202.47059349,0.00011199,2]
[331343950,1720261061770,155.0,0.00011199,2]
[331343951,1720261069708,270.30252486,0.00011199,2]
[331343952,1720261072705,155.0,0.00011199,2]
[331343953,1720261101891,155.57608458,0.00011199,2]
[331343954,1720261112475,308.19482801,0.00011199,2]
[331343955,1720261123147,300.41164596,0.00011199,2]
[331343956,1720261140897,168.00632716,0.00011199,2]
[331343957,1720261151997,269.64824773,0.00011199,2]
[331343958,1720261210880,155.0,0.00011199,2]
[331343959,1720261251129,493.17,0.00010881,2]
[331343960,1720261252694,272.39339313,0.00011199,2]
[331343961,1720261347601,168.1,0.00010112,2]
[331343962,1720261364235,706.6619479,0.00011199,2]
[331343963,1720261380452,9236.41322622,0.00011199,2]
[331343964,1720261392972,252.40329848,0.00011199,2]
[331343965,1720261420455,660.4164294,0.00011199,2]
[331343966,1720261488273,20820.51030214,0.00011199,2]
[331343967,1720261517552,6379.67235669,0.00011199,2]
[331343974,1720261637699,10528.78329836,0.00011199,2]
[331343975,1720261653358,10330.75599743,0.00011199,2]
[331343976,1720261659972,155.19683756,0.00011199,2]
[331343977,1720261708896,3144.54613393,0.00011199,2]
[331343978,1720261710372,956.1106904,0.00011199,2]
[331344065,1720261790389,155.31939259,0.00011199,2]
[331344090,1720261836278,-174.94703919,0.00012302,2]
[331344091,1720261836289,-122.32774701,0.00012314,2]
[331344092,1720261836300,-352.47458403,0.00012314,2]
[331344093,1720261836310,-563.31952658,0.00012465,2]
[331344094,1720261836322,-484.32,0.00012465,2]
[331344095,1720261836335,-247.72047342,0.00012465,2]
[331344096,1720261836346,-255.30224458,0.00012496,2]
[331344097,1720261836357,-685.05424735,0.00012496,2]
[331344098,1720261836370,-4650.31350807,0.00012496,2]
[331344101,1720261836379,-150.0,0.000126,2]
[331344104,1720261836389,-2877.02064915,0.00012618,2]
[331344106,1720261836402,-6318.91836194,0.00012618,2]
[331344108,1720261836418,-7550.04688891,0.00012618,2]
[331344110,1720261836428,-300.0,0.00012668,2]
[331344112,1720261836437,-250.0,0.00012669,2]
[331344114,1720261836447,-1496.32,0.00012669,2]
[331344115,1720261836458,-15496.61,0.00012718,2]
[331344117,1720261836467,-500.0,0.00012729,2]
[331344119,1720261836477,-194.88,0.00012771,2]
[331344121,1720261836488,-250.0,0.00012906,2]
[331344123,1720261836501,-220.07,0.00012906,2]
[331344125,1720261836511,-1000.0,0.0001291,2]
[331344127,1720261836521,-168.04,0.00013005,2]
[331344129,1720261836531,-8423.37,0.00013039,2]
[331344130,1720261836540,-177.51,0.00013138,2]
[331344131,1720261836550,-3496.11,0.00013145,2]
[331344132,1720261836559,-493.17,0.00013145,2]
[331344133,1720261836568,-831.0,0.00013256,2]
[331344134,1720261836578,-178.67,0.00013257,2]
[331344135,1720261836588,-12239.9325,0.00013474,2]
[331344136,1720261836597,-1000.0,0.00013573,2]
[331344137,1720261836607,-1000.0,0.00013573,2]
[331344138,1720261836617,-210861.54771082,0.00013574,2]
[331344139,1720261836626,-724.99466785,0.00013574,2]
[331344140,1720261836635,-642.34762324,0.000136,2]
[331344141,1720261836648,-642.34762324,0.00013675,2]
[331344142,1720261836657,-200.0,0.00013699,2]
[331344143,1720261836667,-4598.75,0.00013699,2]
[331344144,1720261836676,-2751.0,0.00013699,2]
[331344145,1720261836686,-1037.74,0.00013699,2]
[331344146,1720261836696,-2450.5478,0.000137,2]
[331344147,1720261836705,-10453.7029,0.000137,2]
[331344148,1720261836715,-353.5,0.000137,2]
[331344149,1720261836725,-24546.1676,0.000137,2]
[331344150,1720261836735,-53567.379,0.000137,2]
[331344151,1720261836744,-2500.0,0.000137,2]
[331344152,1720261836754,-642.34762324,0.0001375,2]
[331344153,1720261836764,-1000.0,0.00013786,2]
[331344154,1720261836773,-1089.3769,0.000138,2]
[331344155,1720261836782,-39477.9832,0.000138,2]
[331344156,1720261836791,-500.0,0.000138,2]
[331344157,1720261836801,-90260.92351731,0.000138,2]
[331344158,1720261836813,-1096.62478645,0.000138,2]
[331344159,1720261836824,-258.76851609,0.000138,2]
[331344160,1720261836835,-5998.96484759,0.000138,2]
[331344161,1720261836847,-863.503638,0.000138,2]
[331344162,1720261836858,-1521.21469456,0.000138,2]
[331344163,1720261836867,-4171.4095,0.000138,2]
[331344164,1720261836877,-1883.84837903,0.000138,2]
[331344165,1720261836890,-736.99712097,0.000138,2]
[331344166,1720261836900,-3286.3388,0.000138,2]
[331344167,1720261836910,-1000.0,0.000138,2]
[331344168,1720261836920,-223.126,0.000138,2]
[331344169,1720261836930,-642.34762324,0.00013825,2]
[331344170,1720261836940,-500.0,0.00013888,2]
[331344171,1720261836950,-200.0,0.00013888,2]
[331344172,1720261836960,-199.39781433,0.0001389,2]
[331344173,1720261836972,-385.52794989,0.00013893,2]
[331344174,1720261836982,-420.0,0.00013897,2]
[331344175,1720261836992,-492.14130452,0.00013899,2]
[331344176,1720261837005,-163.28679589,0.00013899,2]
[331344177,1720261837015,-4607.37943,0.000139,2]
[331344178,1720261837026,-1000.0,0.000139,2]
[331344179,1720261837037,-179.62485198,0.000139,2]
[331344180,1720261837047,-172.15452278,0.000139,2]
[331344181,1720261837057,-164.76976487,0.000139,2]
[331344182,1720261837067,-29345.73393408,0.000139,2]
[331344183,1720261837080,-396.76166226,0.000139,2]
[331344184,1720261837091,-2779.95864271,0.000139,2]
[331344185,1720261837103,-586.42800353,0.000139,2]
[331344186,1720261837338,-2123.14276236,0.000139,2]
[331344190,1720261838246,-317.07879294,0.000137,2]
[331344191,1720261838256,-108.00105724,0.000139,2]
[331344192,1720261838268,-86046.8973952,0.000139,2]
[331344193,1720261838278,-1055.21831424,0.000139,2]
[331344194,1720261838291,-398.034,0.000139,2]
[331344278,1720261840557,-284.10375384,0.00012386,2]
[331344320,1720261845700,-399.57245594,0.00012386,2]
[331344321,1720261846923,-962.44379022,0.00012386,2]
[331344322,1720261846934,-6046.74768576,0.000139,2]
[331344323,1720261846943,-642.34762324,0.000139,2]
[331344324,1720261846953,-324.6989122,0.000139,2]
[331344325,1720261846962,-635.34536723,0.000139,2]
[331344326,1720261846974,-206.451345,0.00013973,2]
[331344327,1720261846985,-366.50798641,0.00013999,2]
[331344328,1720261846995,-155.0,0.00013999,2]
[331344329,1720261847004,-198.75250467,0.00013999,2]
[331344330,1720261847014,-520.0,0.00014,2]
[331344331,1720261847023,-28644.61161563,0.00014,2]
[331344332,1720261847035,-21188.86,0.00014,2]
[331344333,1720261847046,-84402.68855544,0.00014,2]
[331344334,1720261847058,-12568.40810858,0.00014,2]
[331344335,1720261847069,-2192.35157109,0.00014,2]
[331344336,1720261864718,-1892943.19038023,0.00014,2]
[331344339,1720262129728,1386.68676949,0.00011199,2]
[331344340,1720262197802,546.91634939,0.00011199,2]
[331344341,1720262200529,662.0782888,0.00011199,2]
[331344342,1720262203483,487.38361115,0.00011199,2]
[331344343,1720262214824,474.78077656,0.00011199,2]
[331344344,1720262221163,544.69316985,0.00011199,2]
[331344345,1720262225602,629.53809111,0.00011199,2]
[331344346,1720262242815,196.30304221,0.00011199,2]
[331344347,1720262247352,155.0,0.00011199,2]
[331344349,1720262253567,519.99643975,0.00011199,2]
[331344350,1720262259559,627.35857841,0.00011199,2]
[331344351,1720262276594,198.41459947,0.00011199,2]
[331344352,1720262280972,155.0,0.00011199,2]
[331344353,1720262287895,159.06957682,0.00011199,2]
[331344354,1720262290415,161.39021817,0.00011199,2]
[331344355,1720262294256,242.49333518,0.00011199,2]
[331344356,1720262304482,312.28848083,0.00011199,2]
[331344357,1720262309432,163.84092695,0.00011199,2]
[331344358,1720262311848,155.50860384,0.00011199,2]
[331344359,1720262311951,357.09663039,0.00011199,2]
[331344360,1720262312727,384.15255647,0.00011199,2]
[331344361,1720262314793,205.41084335,0.00011199,2]
[331344362,1720262315752,202.72559596,0.00011199,2]
[331344365,1720262342482,213.35664754,0.00011199,2]
[331344367,1720262351001,155.0,0.00011199,2]
[331344369,1720262416190,3429.67638,0.00011199,2]
[331344370,1720262454428,482.09,0.00010973,2]
[331344372,1720262497251,1278.01375343,0.00011199,2]
[331344373,1720262517121,264.68747954,0.00011199,2]
[331344375,1720262612204,158.47133143,0.00011199,2]
[331344376,1720262653441,1271.27601338,0.00011199,2]
[331344377,1720262666812,1015.73180718,0.00011199,2]
[331344378,1720262689741,155.90467124,0.00011199,2]
[331344379,1720262702768,155.0,0.00011199,2]
[331344380,1720262703538,9236.41322618,0.00011199,2]
[331344381,1720262708608,955.72011969,0.00011199,2]
[331344382,1720262713776,411.64233461,0.00011199,2]
[331344383,1720262719928,7813.4063695,0.00011199,2]
[331344385,1720262748858,518.82270875,0.00011199,2]
[331344386,1720262776293,242.37427876,0.00011199,2]
[331344387,1720262803788,411.31336595,0.00011199,2]
[331344393,1720262830010,227.19964772,0.00011199,2]
[331344394,1720262837635,1012.6344152,0.00025,60]
[331344397,1720262889663,-1042.70594457,0.000118,2]
[331344398,1720262889692,-264.68747954,0.00012314,2]
[331344399,1720262889722,-322.04,0.00012738,2]
[331344400,1720262889748,-250.0,0.00012753,2]
[331344401,1720262889776,-250.0,0.00012785,2]
[331344402,1720262889799,-150.0,0.00012822,2]
[331344403,1720262889825,-1000.0,0.00012848,2]
[331344404,1720262889852,-1233.56657589,0.00012869,2]
[331344492,1720262967118,497.79,0.00010945,2]
[331344507,1720262986669,533.74882186,0.00011199,2]
[331344513,1720262997047,661.16435023,0.00011199,2]
[331344515,1720262997928,650.69302056,0.00011199,2]
[331344520,1720263032256,-466.76010482,0.00012302,2]
[331344522,1720263032267,-161.09288114,0.00012302,2]
[331344529,1720263032572,-71.91759908,0.00012302,2]
[331344530,1720263032582,-194.01927466,0.00012302,2]
[331344531,1720263032593,-155.04631817,0.00012302,2]
[331344532,1720263032603,-292.57856873,0.00012302,2]
[331344533,1720263032613,-163.82863023,0.00012314,2]
[331344534,1720263032623,-155.0,0.00012314,2]
[331344535,1720263032634,-155.34995779,0.00012314,2]
[331344536,1720263032644,-632.56559168,0.00012314,2]
[331344537,1720263032654,-155.50512129,0.00012314,2]
[331344538,1720263032664,-259.52007344,0.00012314,2]
[331344539,1720263032673,-223.81688927,0.00012314,2]
[331344540,1720263032683,-235.5502268,0.00012314,2]
[331344541,1720263032693,-346.47813981,0.00012314,2]
[331344542,1720263032703,-155.82431433,0.00012314,2]